bitfinex-derivatives/quotes_ETHF0:USTF0_20210102
["timestamp","ask_amount","ask_price","bid_price","bid_amount"]
[1609610533345,12.5882,775.34,774.98,6.01438]
[1609610533745,12.5882,775.34,775.33,6.01438]
[1609610534146,12.5882,775.34,775.33,26.42310578]
[1609610534345,4.295,775.36,775.33,26.42310578]
[1609610534346,3.0021,775.36,775.33,26.42310578]
[1609610534545,3.112,775.69,775.33,26.42310578]
[1609610535346,3.112,775.69,775.33,6.01438]
[1609610535546,1.45749449,776.32,775.33,6.01438]
[1609610535746,6.01438,776.12,775.61,6.01438]
[1609610536146,1.45749449,776.32,775.61,6.01438]
[1609610536747,1.45724595,776.54,775.61,6.01438]
[1609610537747,6.01438,776.35,776.29,6.01438]
[1609610537948,10.91938,776.35,776.29,6.01438]
[1609610538748,4.905,776.35,776.14,17.17799666]
[1609610539557,4.905,776.35,776.18,17.17391473]
[1609610539756,4.905,776.35,776.29,6.01438]
[1609610541660,4.905,776.35,776.16,17.23580551]
[1609610541859,4.905,776.35,776.21,6.01438]
[1609610542059,4.905,776.35,776.16,17.23580551]
[1609610542860,4.905,776.35,776.15,17.23611067]
[1609610543059,3.076,776.35,776.15,17.23611067]
[1609610543760,3.076,776.35,776.29,6.01438]
[1609610548277,6.01438,776.84,776.29,6.01438]
[1609610548483,21.01438,776.84,776.29,6.01438]
[1609610548879,21.01438,776.84,776.22,17.2233343]
[1609610549077,24.44838,776.84,776.24,20.33108722]
[1609610549467,24.44838,776.84,776.26,17.21461907]
[1609610549675,9.44838,776.84,776.26,17.21461907]
[1609610549879,6.01438,776.59,776.33,6.01438]
[1609610550076,10.68338,776.59,776.33,6.01438]
[1609610550466,4.669,776.59,776.33,6.01438]
[1609610551868,4.669,776.59,776.44,6.01438]
[1609610555172,15.0,776.75,776.39,17.19475525]
[1609610555772,6.01438,776.53,776.39,17.19475525]
[1609610555972,6.01438,776.53,776.23,6.01438]
[1609610555973,9.32538,776.53,776.29,17.21329176]
[1609610556374,9.32538,776.53,776.23,23.23422908]
[1609610556576,24.32538,776.53,776.23,23.23422908]
[1609610556774,24.32538,776.53,776.23,17.21984908]
[1609610557775,6.01438,776.24,776.23,17.21984908]
[1609610558180,6.01438,776.24,775.89,6.01438]
[1609610558181,6.01438,776.24,776.21,17.23507803]
[1609610558385,21.01438,776.24,776.21,17.23507803]
[1609610559177,21.01438,776.24,775.96,17.26975757]
[1609610559377,6.01438,776.24,775.96,17.26975757]
[1609610559880,6.01438,776.0,775.96,17.26975757]
[1609610560483,6.01438,776.0,775.94,17.27125436]
[1609610560883,3.787,776.07,775.94,17.27125436]
[1609610561484,3.787,776.07,775.89,6.01438]
[1609610561883,6.01438,776.0,775.89,6.01438]
[1609610562285,6.01438,776.0,775.97,17.27699809]
[1609610563386,15.0,775.99,775.97,8.34339809]
[1609610563587,15.0,775.99,775.79,20.42007218]
[1609610563986,6.01438,775.88,775.79,20.42007218]
[1609610564187,21.01438,775.88,775.79,20.42007218]
[1609610565587,20.81438,775.88,775.79,20.42007218]
[1609610565788,20.81438,775.88,775.7,20.43121161]
[1609610565990,6.01438,775.8,775.7,20.43121161]
[1609610566188,21.01438,775.8,775.7,20.43121161]
[1609610566890,21.01438,775.8,775.65,20.44487849]
[1609610567290,6.01438,775.8,775.65,20.44487849]
[1609610567490,5.59428,775.8,775.65,20.44487849]
[1609610567691,20.59428,775.8,775.59,20.46290299]
[1609610567891,6.01438,775.63,775.59,20.46290299]
[1609610569193,6.01438,775.63,775.6,20.46293428]
[1609610569895,6.01438,775.63,775.59,20.46453602]
[1609610570896,3.017,775.73,775.59,20.46453602]
[1609610571096,3.017,775.73,775.6,20.46156978]
[1609610571996,3.017,775.73,775.72,6.01438]
[1609610574598,3.017,775.73,775.57,23.63761023]
[1609610575801,21.01438,775.88,775.57,23.63761023]
[1609610576005,6.01438,775.72,775.67,20.48772689]
[1609610576203,9.09838,775.72,775.67,20.48772689]
[1609610577906,9.09838,775.72,775.61,20.48713938]
[1609610578908,3.084,775.72,775.61,20.48713938]
[1609610579105,4.741,775.89,775.57,20.48669889]
[1609610579310,3.787,776.07,775.57,20.48669889]
[1609610579508,1.45584302,776.41,775.57,20.48669889]
[1609610579908,6.01438,776.36,776.08,6.01438]
[1609610580614,6.01438,776.36,776.1,17.28591035]
[1609610581413,6.01438,776.36,776.19,17.27470934]
[1609610581924,21.01438,776.36,776.19,17.27470934]
[1609610583913,6.01438,776.2,776.19,17.27470934]
[1609610584130,25.68138,776.2,776.19,17.27470934]
[1609610585217,25.68138,776.2,776.18,17.28172301]
[1609610586617,25.68138,776.2,775.86,23.56598593]
[1609610586618,25.68138,776.2,775.86,17.33260136]
[1609610587924,6.01438,776.04,775.86,17.33260136]
[1609610588123,10.72738,776.04,775.86,17.33260136]
[1609610588323,10.72738,776.04,775.83,17.33060089]
[1609610588522,25.72738,776.04,775.83,17.33060089]
[1609610589123,25.72738,776.04,775.92,17.32205563]
[1609610589323,19.713,776.04,775.92,17.32205563]
[1609610589724,4.713,776.04,775.92,17.32205563]
[1609610589925,4.513,776.04,775.97,17.32010558]
[1609610591426,4.513,776.04,776.0,17.31915229]
[1609610592128,4.513,776.04,775.96,17.32405056]
[1609610593329,6.01438,776.15,775.96,17.32405056]
[1609610593627,15.0,776.19,775.96,17.32405056]
[1609610594027,15.0,776.19,776.0,6.01438]
[1609610594427,4.667,776.2,776.0,6.01438]
[1609610594628,19.667,776.2,776.0,6.01438]
[1609610594929,19.667,776.2,776.0,23.33081998]
[1609610595532,4.667,776.2,776.0,23.33081998]
[1609610595731,15.0,776.2,776.0,17.31643998]
[1609610595934,15.0,776.2,776.03,17.31427293]
[1609610596633,15.0,776.2,775.87,20.46232255]
[1609610596634,15.0,776.19,775.97,17.32465869]
[1609610596832,18.458,776.19,775.97,17.32465869]
[1609610597834,18.458,776.19,775.73,17.33633579]
[1609610598032,6.01438,775.74,775.73,17.33633579]
[1609610598232,24.78138,775.74,775.73,17.33633579]
[1609610598633,24.78138,775.74,775.69,17.33711601]
[1609610599833,24.78138,775.74,775.27,6.01438]
[1609610599834,24.78138,775.74,775.63,17.33801492]
[1609610600033,6.01438,775.64,775.63,17.33801492]
[1609610600233,21.01438,775.64,775.63,17.33801492]
[1609610601040,21.01438,775.64,775.61,17.33880447]
[1609610601736,21.01438,775.64,775.57,17.33866704]
[1609610604843,21.01438,775.64,775.55,17.34004698]
[1609610605842,21.01438,775.64,775.5,17.34034035]
[1609610606042,6.01438,775.51,775.5,17.34034035]
[1609610606244,24.57938,775.51,775.5,17.34034035]
[1609610606943,9.57938,775.51,775.49,17.34076974]
[1609610607142,3.565,775.51,775.49,17.34076974]
[1609610608144,3.565,775.51,775.5,6.01438]
[1609610608543,3.565,775.51,775.4,20.49002173]
[1609610609144,3.565,775.51,775.4,23.64085499]
[1609610610045,3.767,775.74,775.5,6.01438]
[1609610610245,6.01438,775.81,775.5,6.01438]
[1609610611846,21.01438,775.81,775.8,17.33476428]
[1609610612849,21.01438,775.81,775.77,17.33681563]
[1609610613048,24.96238,775.81,775.77,17.33681563]
[1609610616851,9.96238,775.81,775.77,17.33681563]
[1609610618357,9.96238,775.81,775.58,17.33546743]
[1609610619561,9.96238,775.81,775.67,17.33492081]
[1609610620159,6.01438,775.68,775.67,17.33492081]
[1609610620663,6.01438,775.68,775.6,20.4869899]
[1609610621161,15.0,775.67,775.6,20.4869899]
[1609610621564,15.0,775.67,775.58,20.48837113]
[1609610622162,6.01438,775.59,775.58,20.48837113]
[1609610622362,21.01438,775.59,775.58,17.33774691]
[1609610624066,21.01438,775.59,775.53,17.338866]
[1609610624264,15.0,775.59,775.53,17.338866]
[1609610624465,15.0,775.62,775.53,17.338866]
[1609610624764,6.01438,775.54,775.53,17.338866]
[1609610624965,21.01438,775.54,775.53,17.338866]
[1609610625166,21.01438,775.54,775.51,17.3386566]
[1609610625765,21.01438,775.54,775.36,20.49113962]
[1609610625965,21.01438,775.54,775.5,17.33899842]
[1609610626967,21.01438,775.54,775.48,17.34163118]
[1609610628066,21.01438,775.54,775.17,23.64767888]
[1609610628067,21.01438,775.54,775.33,17.34284273]
[1609610628766,6.01438,775.34,775.33,17.34284273]
[1609610628966,25.15238,775.34,775.33,17.34284273]
[1609610629768,25.15238,775.34,774.86,26.80257513]
[1609610629769,25.15238,775.34,775.26,17.34380267]
[1609610630871,10.6396,775.33,775.26,17.34380267]
[1609610631071,10.6396,775.33,774.64,29.95747734]
[1609610631072,15.0,775.32,775.22,17.34797167]
[1609610631572,15.0,775.32,775.06,20.50214833]
[1609610631975,95.6485,775.24,774.75,20.50286704]
[1609610632176,15.0,775.23,774.75,20.50286704]
[1609610632775,6.01438,774.76,774.75,20.50286704]
[1609610632976,21.01438,774.76,774.65,20.50513199]
[1609610633478,21.01438,774.76,774.59,20.50658264]
[1609610634278,21.01438,774.76,774.52,20.50908949]
[1609610634478,0.4,774.75,774.52,20.50908949]
[1609610634680,85.9005,774.58,774.52,20.50908949]
[1609610634877,6.01438,774.53,774.52,20.50908949]
[1609610635077,21.01438,774.53,774.52,20.50908949]
[1609610635877,21.01438,774.53,774.4,20.51218383]
[1609610636078,6.01438,774.53,774.4,20.51218383]
[1609610636477,21.01438,774.53,774.4,20.51218383]
[1609610636878,6.01438,774.41,774.38,20.51151514]
[1609610637077,9.34538,774.41,774.38,20.51151514]
[1609610638479,9.34538,774.41,774.39,20.51100528]
[1609610639378,9.34538,774.41,774.24,23.66654455]
[1609610639379,9.34538,774.41,774.36,20.51092318]
[1609610640579,9.34538,774.41,774.34,20.51440682]
[1609610641680,9.34538,774.41,774.02,6.01438]
[1609610641681,9.34538,774.41,774.21,20.51429516]
[1609610642783,9.34538,774.41,774.02,6.01438]
[1609610642784,9.34538,774.41,774.38,17.35696212]
[1609610642983,3.331,774.41,774.38,17.35696212]
[1609610643179,3.406,774.58,774.38,17.35696212]
[1609610643379,15.0,774.73,774.38,17.35696212]
[1609610643581,15.0,774.73,774.28,20.5125609]
[1609610644783,73.7684,774.62,774.28,20.5125609]
[1609610644984,6.01438,774.29,774.28,20.5125609]
[1609610645186,9.29638,774.29,774.14,23.66966112]
[1609610645685,9.29638,774.29,773.94,6.01438]
[1609610645686,9.29638,774.29,774.2,20.514504]
[1609610646586,9.29638,774.29,773.94,6.01438]
[1609610646587,9.29638,774.29,774.18,20.51458252]
[1609610646886,6.01438,774.19,774.18,20.51458252]
[1609610647086,21.01438,774.19,774.18,20.51458252]
[1609610647692,21.01438,774.19,774.04,23.67176446]
[1609610648187,6.01438,774.19,774.04,23.67176446]
[1609610648489,6.01438,774.19,774.15,20.51571056]
[1609610649488,15.0,774.18,774.15,20.51571056]
[1609610649693,92.8869,774.16,774.15,20.51571056]
[1609610649887,107.8869,774.16,774.15,20.51571056]
[1609610650088,107.8869,774.16,773.99,23.67197373]
[1609610650891,107.8869,774.16,774.05,20.52801714]
[1609610651091,15.0,774.16,774.05,20.52801714]
[1609610651291,80.453,774.06,774.05,20.52801714]
[1609610651490,95.453,774.06,774.05,20.52801714]
[1609610652097,95.453,774.06,773.96,17.37294876]
[1609610652294,15.0,774.06,773.96,17.37294876]
[1609610652495,15.0,774.05,773.96,17.37294876]
[1609610652699,78.0109,773.97,773.96,17.37294876]
[1609610652892,99.02528,773.97,773.96,17.37294876]
[1609610653295,99.02528,773.97,773.96,4.69454876]
[1609610653494,99.02528,773.97,773.64,20.53775088]
[1609610653698,21.01438,773.97,773.64,20.53775088]
[1609610654893,6.01438,773.65,773.64,20.53775088]
[1609610655097,25.84838,773.65,773.64,20.53775088]
[1609610655295,25.84838,773.65,772.94,31.59653981]
[1609610655296,74.4994,773.49,773.39,20.54917889]
[1609610655497,15.0,773.48,773.23,23.71059103]
[1609610656098,15.0,773.48,773.23,2.08659103]
[1609610656304,15.0,773.48,773.08,26.87200316]
[1609610656498,107.4754,773.24,772.92,30.0334153]
[1609610656899,6.01438,772.93,772.28,30.05529094]
[1609610657095,15.0,772.92,772.28,30.05529094]
[1609610657295,76.3824,772.31,772.28,30.05529094]
[1609610657501,76.3824,772.31,746.43,0.24494434]
[1609610657502,15.0,772.3,771.71,30.06005451]
[1609610657894,74.1435,772.11,771.71,30.06005451]
[1609610658096,3.359,772.31,771.71,30.06005451]
[1609610658294,3.501,772.14,771.71,33.87205451]
[1609610658896,3.501,772.14,772.13,6.01438]
[1609610659098,6.01438,772.72,772.13,6.01438]
[1609610660498,12.89251443,773.23,772.13,6.01438]
[1609610660999,1.42851443,773.23,773.03,6.01438]
[1609610661400,6.01438,773.38,773.03,6.01438]
[1609610662001,6.01438,773.38,772.67,4.222]
[1609610662902,94.4786,773.52,772.88,6.01438]
[1609610663102,6.01438,773.25,772.88,10.32038]
[1609610664505,4.315,773.32,772.88,10.32038]
[1609610664906,4.315,773.32,773.28,6.01438]
[1609610665309,1.4341616,773.9,773.28,9.99338]
[1609610665506,16.4341616,773.9,773.28,9.99338]
[1609610665707,15.0,773.9,773.28,9.99338]
[1609610666407,15.0,773.93,773.28,9.99338]
[1609610667009,6.01438,773.8,773.54,6.01438]
[1609610667408,9.27938,773.8,773.54,6.01438]
[1609610667609,24.27938,773.8,773.28,3.979]
[1609610668808,9.27938,773.8,773.28,3.979]
[1609610669008,3.265,773.8,773.28,3.979]
[1609610670308,3.265,773.8,773.1,20.54311833]
[1609610671009,6.01438,773.77,773.45,6.01438]
[1609610671210,21.01438,773.77,773.1,20.54311833]
[1609610672310,15.0,773.76,773.1,20.54311833]
[1609610673010,6.01438,773.48,773.12,6.01438]
[1609610673713,6.01438,773.48,773.3,20.54552814]
[1609610673913,3.499,773.58,773.3,20.54552814]
[1609610674411,3.499,773.58,773.19,20.54287917]
[1609610675014,6.01438,773.77,773.45,6.01438]
[1609610675213,3.265,773.8,773.45,6.01438]
[1609610675412,1.43600853,774.19,773.45,6.01438]
[1609610675812,15.0,774.31,773.45,6.01438]
[1609610675813,1.43608667,774.26,773.45,6.01438]
[1609610676813,1.43655776,774.35,773.45,6.01438]
[1609610677013,6.01438,774.12,774.04,6.01438]
[1609610677213,1.43655776,774.35,774.04,6.01438]
[1609610678416,1.43801946,774.51,774.04,6.01438]
[1609610679215,6.01438,774.54,774.04,6.01438]
[1609610682423,1.44091208,774.65,774.04,6.01438]
[1609610683023,1.44091208,774.65,774.58,6.01438]
[1609610683425,6.01438,774.7,774.58,6.01438]
[1609610684627,6.01438,774.7,773.81,3.525]
[1609610684628,6.01438,774.7,774.18,17.3672487]
[1609610684828,9.81838,774.7,774.18,17.3672487]
[1609610685027,9.81838,774.7,774.39,6.01438]
[1609610685230,24.81838,774.7,774.39,6.01438]
[1609610686128,24.81838,774.7,774.16,17.36853194]
[1609610686330,9.81838,774.7,774.16,17.36853194]
[1609610687031,6.01438,774.5,774.32,6.01438]
[1609610687332,9.69138,774.5,774.32,6.01438]
[1609610688936,3.677,774.5,774.32,6.01438]
[1609610691039,3.677,774.5,774.49,6.01438]
[1609610692244,3.677,774.5,774.22,17.36790978]
[1609610692441,3.844,774.5,774.22,17.36790978]
[1609610692844,3.844,774.5,774.32,17.36767706]
[1609610693042,3.844,774.5,774.4,6.01438]
[1609610693544,3.844,774.5,774.32,17.36767706]
[1609610694545,18.844,774.5,774.32,17.36767706]
[1609610695148,6.01438,774.33,774.32,17.36767706]
[1609610695345,25.91738,774.33,774.32,17.36767706]
[1609610695548,25.91738,774.33,774.19,17.37314429]
[1609610696448,25.91738,774.33,773.85,17.37552739]
[1609610697049,6.01438,774.1,773.85,17.37552739]
[1609610697449,6.01438,774.1,773.79,6.01438]
[1609610697450,9.89738,774.1,773.79,6.01438]
[1609610698049,9.89738,774.1,773.76,17.3751519]
[1609610698452,9.89738,774.1,773.81,17.37518895]
[1609610699350,24.89738,774.1,773.81,17.37518895]
[1609610700753,24.89738,774.1,773.66,17.37886811]
[1609610701152,6.01438,773.97,773.66,17.37886811]
[1609610701353,21.01438,773.97,773.66,17.37886811]
[1609610701753,21.01438,773.97,773.65,6.01438]
[1609610702553,21.01438,773.97,773.67,17.37987103]
[1609610702954,6.01438,773.97,773.67,17.37987103]
[1609610703154,6.01438,773.79,773.67,17.37987103]
[1609610703357,9.97538,773.79,773.65,6.01438]
[1609610703555,3.961,773.79,773.65,6.01438]
[1609610704457,3.961,773.79,773.71,17.37823164]
[1609610705061,6.01438,773.78,773.69,17.37807967]
[1609610705862,3.961,773.79,773.69,17.37807967]
[1609610706062,3.961,773.79,773.67,17.3776173]
[1609610707062,3.961,773.79,773.75,17.37564031]
[1609610707264,3.961,773.79,773.78,6.01438]
[1609610708264,3.883,774.1,773.78,6.01438]
[1609610708464,15.0,774.32,773.78,6.01438]
[1609610709066,15.0,774.32,773.66,20.53546396]
[1609610709266,6.01438,774.05,773.66,20.53546396]
[1609610709466,15.0,774.04,773.66,20.53546396]
[1609610710169,15.0,774.04,747.14,0.23965677]
[1609610710170,15.0,774.04,773.77,17.37812457]
[1609610710567,15.0,774.04,773.77,21.74512457]
[1609610711169,6.01438,773.87,773.77,4.367]
[1609610712569,15.0,774.32,773.77,4.367]
[1609610712769,15.0,774.31,773.77,4.367]
[1609610713169,6.01438,774.05,773.89,6.01438]
[1609610713370,21.01438,774.05,773.77,4.367]
[1609610713570,21.01438,774.05,773.81,17.37709796]
[1609610715170,6.01438,773.82,773.81,17.37709796]
[1609610715671,6.01438,773.82,773.77,4.367]
[1609610715971,6.01438,773.82,773.76,17.37771197]
[1609610716373,21.01438,773.82,773.76,17.37771197]
[1609610717072,21.01438,773.82,773.61,4.473]
[1609610717073,21.01438,773.82,773.71,17.3784154]
[1609610717272,6.01438,773.72,773.71,17.3784154]
[1609610717875,21.01438,773.72,773.67,17.37915077]
[1609610718173,6.01438,773.72,773.67,17.37915077]
[1609610719074,6.01438,773.72,773.61,4.473]
[1609610719273,6.01438,773.63,773.61,4.473]
[1609610719476,6.01438,773.63,773.6,17.37961276]
[1609610719975,6.01438,773.63,773.47,20.53991923]
[1609610721373,6.01438,773.63,773.55,6.01438]
[1609610721775,6.01438,773.63,773.62,17.37987093]
[1609610722775,21.01438,773.63,773.62,17.37987093]
[1609610723177,21.01438,773.63,773.55,3.855]
[1609610726886,21.01438,773.63,773.25,4.661]
[1609610727085,21.01438,773.63,773.24,17.38780786]
[1609610727285,6.01438,773.25,773.24,17.38780786]
[1609610727486,21.01438,773.25,773.24,17.38780786]
[1609610727787,21.01438,773.25,773.2,17.39278686]
[1609610728388,21.01438,773.25,746.43,0.24494434]
[1609610728389,21.01438,773.25,772.98,17.39328772]
[1609610728890,21.01438,773.25,772.89,17.39476134]
[1609610729289,6.01438,772.9,772.89,17.39476134]
[1609610730290,6.01438,772.9,772.86,17.39761009]
[1609610730890,15.0,773.39,772.86,17.39761009]
[1609610731089,15.0,773.39,772.86,21.96761009]
[1609610731290,6.01438,773.14,772.91,6.01438]
[1609610731490,6.01438,773.14,772.86,21.96761009]
[1609610732493,6.01438,773.14,772.86,4.57]
[1609610733294,6.01438,773.14,773.05,6.01438]
[1609610733494,6.01438,773.14,773.05,4.453]
[1609610735296,6.01438,773.06,773.05,4.453]
[1609610736196,21.01438,773.06,773.05,4.453]
[1609610736396,119.00108,773.06,773.02,17.39396308]
[1609610737598,119.00108,773.06,772.63,17.40147625]
[1609610738698,6.01438,773.06,772.63,17.40147625]
[1609610738899,6.01438,773.06,772.62,17.40168127]
[1609610739299,15.0,773.18,772.62,17.40168127]
[1609610739300,6.01438,772.78,772.62,17.40168127]
[1609610740303,6.01438,772.78,772.7,17.40028115]
[1609610740501,6.01438,772.78,772.7,22.24928115]
[1609610740803,15.0,772.77,772.7,22.24928115]
[1609610741007,15.0,772.77,772.7,4.849]
[1609610741802,6.01438,772.78,772.7,4.849]
[1609610742902,21.01438,772.78,772.7,4.849]
[1609610743705,81.6827,772.75,772.7,4.849]
[1609610743906,15.0,772.74,772.63,17.40293465]
[1609610744508,15.0,772.74,772.44,17.40526092]
[1609610745309,6.01438,772.45,772.33,17.40665522]
[1609610745508,15.0,772.44,772.33,17.40665522]
[1609610746610,6.01438,772.45,772.33,17.40665522]
[1609610746810,21.01438,772.45,772.33,17.40665522]
[1609610747110,21.01438,772.45,772.29,17.410068]
[1609610747311,6.01438,772.3,772.29,17.410068]
[1609610749213,6.01438,772.3,772.14,24.83553491]
[1609610749214,21.01438,772.3,772.17,17.41316646]
[1609610749416,6.01438,772.18,772.17,17.41316646]
[1609610749613,21.01438,772.18,772.17,17.41316646]
[1609610750516,21.01438,772.18,772.15,17.41579127]
[1609610751516,21.01438,772.18,772.15,12.84599127]
[1609610751920,21.01438,772.18,771.7,20.59058652]
[1609610753317,6.01438,771.71,771.3,20.59789596]
[1609610753517,15.0,771.7,771.3,20.59789596]
[1609610754825,10.17338,771.71,771.3,20.59789596]
[1609610755221,10.17338,771.71,771.18,4.066]
[1609610755421,6.01438,771.19,771.18,4.066]
[1609610755619,19.159,771.71,771.18,4.066]
[1609610755821,4.159,771.71,771.18,4.066]
[1609610756419,12.135,771.88,771.18,4.066]
[1609610756831,0.65486466,771.97,771.18,4.066]
[1609610757441,6.01438,772.08,771.8,6.01438]
[1609610757637,6.01438,772.08,771.8,9.76138]
[1609610758025,0.65587896,772.23,771.8,9.76138]
[1609610758426,11.9938,772.45,771.8,9.76138]
[1609610759026,0.65722906,772.55,771.8,9.76138]
[1609610759428,6.01438,772.7,772.36,6.01438]
[1609610759627,6.01438,772.7,772.36,9.60438]
[1609610761141,6.01438,772.7,772.36,3.59]
[1609610761337,6.01438,772.37,772.36,3.59]
[1609610762344,15.0,772.79,772.36,3.59]
[1609610763132,15.0,772.79,772.18,3.542]
[1609610763332,6.01438,772.19,772.18,3.542]
[1609610763532,24.89638,772.19,772.18,3.542]
[1609610764133,24.89638,772.19,772.08,20.59340989]
[1609610764535,9.89638,772.19,772.08,20.59340989]
[1609610764734,24.89638,772.19,772.08,20.59340989]
[1609610764934,24.89638,772.19,771.57,17.42420185]
[1609610765236,9.89638,772.19,771.57,17.42420185]
[1609610765435,6.01438,771.65,771.57,17.42420185]
[1609610767139,6.01438,771.65,771.51,20.59340383]
[1609610767340,6.01438,771.52,771.51,20.59340383]
[1609610767741,6.01438,771.52,771.45,20.59342898]
[1609610771645,6.01438,771.52,771.51,17.43123621]
[1609610772043,6.01438,771.52,771.36,20.60055189]
[1609610773447,3.934,771.76,771.36,20.60055189]
[1609610773648,0.65645937,772.16,771.42,17.43161756]
[1609610775450,6.01438,771.43,771.42,17.43161756]
[1609610775850,6.01438,771.43,771.26,20.60100257]
[1609610775851,6.01438,771.43,771.41,17.43270415]
[1609610776760,6.01438,771.43,771.35,17.43235206]
[1609610776951,0.65652067,772.09,771.35,17.43235206]
[1609610777156,3.622,771.5,771.35,17.43235206]
[1609610777451,6.01438,771.49,771.35,17.43235206]
[1609610777651,6.01438,771.49,771.12,6.01438]
[1609610777652,6.01438,771.49,771.4,17.43034473]
[1609610777851,3.622,771.5,771.4,17.43034473]
[1609610778253,0.65684906,772.2,771.46,17.42859389]
[1609610778654,0.65684906,772.2,771.5,0.375]
[1609610779162,0.65755089,772.37,771.63,17.42586654]
[1609610779360,27.5379,772.3,771.63,17.42586654]
[1609610779562,6.01438,771.8,771.78,6.01438]
[1609610779763,6.01438,771.8,771.63,17.42586654]
[1609610781256,6.01438,771.8,771.68,17.42777095]
[1609610781455,6.01438,771.69,771.68,17.42777095]
[1609610782055,4.459,771.94,771.68,17.42777095]
[1609610783456,6.01438,771.69,771.68,17.42777095]
[1609610783860,6.01438,771.69,771.56,17.42726112]
[1609610786161,3.739,771.71,771.56,17.42726112]
[1609610786563,3.739,771.71,771.52,17.42667814]
[1609610787364,4.459,771.94,771.52,17.42667814]
[1609610787564,6.01438,771.87,771.59,6.01438]
[1609610787765,6.01438,771.87,771.67,17.4252611]
[1609610789166,6.01438,771.87,771.76,17.42501911]
[1609610790170,6.01438,771.87,771.77,17.4247361]
[1609610790371,4.044,772.09,771.77,17.4247361]
[1609610791181,4.044,772.09,771.81,17.42416867]
[1609610791582,6.01438,771.99,771.81,17.42416867]
[1609610792383,6.01438,771.99,771.69,3.946]
[1609610792384,6.01438,771.99,771.85,17.42398512]
[1609610792984,15.0,771.98,771.85,17.42398512]
[1609610793585,6.01438,771.86,771.82,17.42691674]
[1609610794690,6.01438,771.86,771.69,3.946]
[1609610795488,4.044,772.09,771.68,17.42665937]
[1609610795489,6.01438,771.7,771.68,17.42665937]
[1609610796391,4.044,772.09,771.68,17.42665937]
[1609610796591,15.0,772.26,771.68,17.42665937]
[1609610797394,12.5379,772.3,771.61,20.5953853]
[1609610797593,6.01438,771.72,771.61,20.5953853]
[1609610797795,4.882,772.05,771.61,20.5953853]
[1609610798903,4.882,772.05,771.76,17.42548295]
[1609610799497,6.01438,771.82,771.76,17.42548295]
[1609610799697,4.882,772.05,771.76,17.42548295]
[1609610800298,4.882,772.05,771.81,17.42320812]
[1609610800901,4.882,772.05,771.98,17.42195613]
[1609610802301,6.01438,772.28,771.98,17.42195613]
[1609610802501,15.0,772.27,771.98,17.42195613]
[1609610802702,18.357,772.27,771.97,6.01438]
[1609610803001,3.357,772.27,771.97,6.01438]
[1609610803403,3.357,772.27,771.9,20.59243367]
[1609610803603,6.01438,772.06,771.9,20.59243367]
[1609610804504,6.01438,772.06,771.83,17.42261588]
[1609610805504,6.01438,772.06,772.03,6.01438]
[1609610807509,6.01438,772.06,771.97,17.42114756]
[1609610808509,21.01438,772.06,771.97,17.42114756]
[1609610808910,6.01438,772.06,771.97,17.42114756]
[1609610809111,5.63938,772.06,772.0,17.42383346]
[1609610810412,5.63938,772.06,771.98,6.01438]
[1609610811011,5.63938,772.06,771.98,23.43652965]
[1609610813112,3.929,772.11,771.98,23.43652965]
[1609610813313,3.357,772.27,771.98,23.43652965]
[1609610813512,6.01438,772.37,772.19,6.01438]
[1609610815515,6.01438,772.37,772.32,6.01438]
[1609610817617,11.9448,772.84,772.32,6.01438]
[1609610818918,15.0,772.83,772.32,6.01438]
[1609610819116,19.869,772.83,772.32,6.01438]
[1609610819516,6.01438,772.62,772.51,6.01438]
[1609610820119,3.776,772.66,772.51,6.01438]
[1609610820318,3.776,772.66,772.2,3.403]
[1609610820319,3.776,772.66,772.24,17.41620699]